Cogmind - Beta 16.1 @@@ ROGUE MODE // 2026.04.07 @ 19:37:08 Player: f3-rnm Result: Destroyed by H-88 Terminator with KE Penetrator Performance ------------- Evolutions (9) 4500 Regions Visited (22) 4400 Robots Destroyed (299) 1495 Value Destroyed (15501) 15501 Prototype IDs (56) 1120 Alien Tech Used (8) 1600 Bonus (13475) 13475 TOTAL SCORE: 42091 Bonus ------- Triggered High Security 1000 High Alert Combat Kills 4773 Follower Combat Kills 4369 Registered with UFD 300 Met Optimus in HQ 500 Met Data Miner 300 Met Zhirov 300 Used Core Reset Matrix 3000 Scanned by Researcher 500 Friendly Fire -1567 Cogmind --------- Core Integrity 0/1600 Matter 300/300 Energy 99/100 System Corruption 3% Temperature Cool (2) Movement Flying (37) Location -1/Access Parts ------- > --- POWER (3) -------- (None) > --- PROPULSION (7) --- Improved Q-thruster Improved Q-thruster > --- UTILITY (10) ----- Advanced Signal Interpreter Transport Network Coupler System Shield > --- WEAPON (5) ------- Dual-blade Saw > --- INVENTORY (5) ---- Long-range Tractor Beam Linear Accelerator Core Stripper Sigix Corpse Peak State ------------ > --- POWER ------------ Quantum Reactor Quantum Reactor Light Quantum Reactor > --- PROPULSION ------- Biometal Leg Biometal Leg Centrium Leg Centrium Leg High-density Centrium Leg High-density Centrium Leg > --- UTILITY ---------- Advanced Coolant Injector Huge Storage Unit Advanced Energy Well Advanced Targeting Computer Weapon Mount Nanoactuators Advanced Remote Force Field Hacking Suite Advanced Component Analysis Suite Improved System Guard > --- WEAPON ----------- Core Cannon Fusion Bomb Launcher Sigix Broadsword > --- INVENTORY -------- Light Antimatter Reactor Micro Antimatter Reactor High-capacity Storage Unit Advanced Energy Well Improved Matter Compressor Advanced Signal Interpreter Graphene Brace Amulet of Y3-NDR Multitool Core Stripper Ionic Axe Vibroblade Sigix Broadsword Sigix Corpse [Rating: 215] Favorites ----------- Power Neutrino Core Engine Light Ion Engine Power Core Neutrino Core Reactor Light Quantum Reactor Propulsion Enhanced Armored Leg Treads Spiked Treads Leg Enhanced Armored Leg Wheel Armored Huge Wheel Flight Unit Impulse Thruster Array Utility High-capacity Storage Unit Device Scrap Suit Storage High-capacity Storage Unit Processor Advanced Targeting Computer Hackware Hacking Suite Protection Hardened Medium Armor Plating Weapon Overtuned Coil Gun Energy Gun Force Rifle Energy Cannon Core Cannon Ballistic Gun Overtuned Coil Gun Ballistic Cannon Magnetic Acceleration Cannon Launcher Fusion Bomb Launcher Special Weapon Improved Remote Datajack Impact Weapon Powered Hammer Slashing Weapon Sigix Broadsword Special Melee Weapon 1B-0RG's Assimilator Build | -11 -10 -10 -10 -9 -9 -6 -6 -6 -6 -5 -5 -5 -5 -4 -4 -4 -4 -3 -3 -3 -2 -1 ------- Run | Yrd Mat Min Sub Rec Scr Fac Low Low Dat Pro Fac Was Fac Fac Upp Upp Zhi Pro Res Qua Res Acc Slots Evolved 18 | . . . . . . 8 . . . . 2 . . 2 . . . . 2 . 2 2 Power 2 | . . . . . . . . . . . . . . . . . . . 1 . . 1 Propulsion 5 | . . . . . . 2 . . . . . . . 1 . . . . 1 . 1 . Utility 8 | . . . . . . 3 . . . . 2 . . 1 . . . . . . 1 1 Weapon 3 | . . . . . . 3 . . . . . . . . . . . . . . . . Parts Attached 240 | 6 . 3 13 . . 23 4 4 . 25 10 4 4 10 3 . 3 1 10 37 42 38 Power 37 | 1 . . . . . 1 . . . 5 . 1 . 1 . . 1 . 2 6 11 8 Engine 3 | 1 . . . . . . . . . 1 . . . . . . . . . . . 1 Core 6 | . . . . . . 1 . . . 4 . . . . . . . . . 1 . . Reactor 28 | . . . . . . . . . . . . 1 . 1 . . 1 . 2 5 11 7 Propulsion 60 | 2 . . 4 . . 6 . . . 3 . . 4 4 . . . . 2 12 14 9 Treads 8 | 2 . . 2 . . . . . . . . . . . . . . . . 4 . . Leg 36 | . . . . . . 2 . . . . . . 4 4 . . . . 2 8 14 2 Wheel 9 | . . . 2 . . 4 . . . 3 . . . . . . . . . . . . Hover . | . . . . . . . . . . . . . . . . . . . . . . . Flight 7 | . . . . . . . . . . . . . . . . . . . . . . 7 Utility 82 | 1 . 3 3 . . 10 1 2 . 7 2 3 . 1 3 . 2 . 4 7 15 18 Device 41 | . . 1 1 . . 3 . 2 . 5 2 1 . . 3 . . . 3 4 7 9 Storage 14 | 1 . 1 1 . . 3 . . . 1 . . . . . . 1 . 1 2 1 2 Processor 11 | . . . . . . . . . . 1 . 2 . 1 . . . . . 1 2 4 Hackware 3 | . . . . . . . . . . . . . . . . . . . . . 1 2 Protection 13 | . . 1 1 . . 4 1 . . . . . . . . . 1 . . . 4 1 Artifact . | . . . . . . . . . . . . . . . . . . . . . . . Weapon 61 | 2 . . 6 . . 6 3 2 . 10 8 . . 4 . . . 1 2 12 2 3 Energy Gun 15 | . . . . . . 1 . 1 . 5 5 . . 1 . . . . . 2 . . Energy Cannon 3 | . . . . . . . 1 . . 1 . . . . . . . . . 1 . . Ballistic Gun 22 | 2 . . 5 . . 3 . 1 . 2 2 . . 3 . . . 1 1 2 . . Ballistic Cannon 5 | . . . . . . . 2 . . 1 . . . . . . . . . . . 2 Launcher 5 | . . . 1 . . 1 . . . . . . . . . . . . . 3 . . Special Weapon 3 | . . . . . . . . . . 1 1 . . . . . . . 1 . . . Impact Weapon 2 | . . . . . . . . . . . . . . . . . . . . 2 . . Slashing Weapon 5 | . . . . . . . . . . . . . . . . . . . . 2 2 1 Piercing Weapon . | . . . . . . . . . . . . . . . . . . . . . . . Special Melee Weapon 1 | . . . . . . 1 . . . . . . . . . . . . . . . . Unidentified Prototypes 27 | . . . 1 . . 2 1 1 . . 4 . 1 1 . . 4 . . 6 4 2 Corrupted Parts 2 | . . . 1 . . . . . . . . . . . . . . . . 1 . . System Corruption 9 | . . . 4 . . . . . . . . . . . . . . . . 5 . . Parts Lost 110 | . . . 5 . . 2 . . . 13 1 . . . . . . 2 1 29 25 32 Power 23 | . . . 1 . . . . . . 2 1 . . . . . . . . 6 7 6 Propulsion 29 | . . . 1 . . . . . . 2 . . . . . . . 1 . 7 8 10 Utility 29 | . . . 1 . . 2 . . . 3 . . . . . . . . . 4 9 10 Weapon 29 | . . . 2 . . . . . . 6 . . . . . . . 1 1 12 1 6 Highest Loss Streak 19 | . . . 3 . . 1 . . . 4 1 . . . . . . 2 1 19 6 16 To Critical Strikes 3 | . . . . . . . . . . . . . . . . . . . . . . 3 Average Backups 14 | . 2 7 10 16 17 13 17 18 18 15 17 17 18 17 17 18 18 17 19 19 18 9 Power . | . 1 . . . . . 1 2 2 . . . 1 1 1 2 1 1 1 . 1 . Propulsion 1 | . 1 1 1 2 2 1 1 1 1 . . . . 1 1 1 1 1 1 1 2 . Utility 7 | . . 4 6 9 7 8 12 12 12 11 11 9 10 8 7 7 7 7 8 8 7 4 Weapon 2 | . . 1 1 3 5 2 1 1 1 1 3 4 4 4 5 5 5 4 4 3 3 3 Tool/Special . | . . . . . . . . . . . . . . . . . . . . . . . Unused Backups 43 | . . 2 1 . . 3 2 3 . 2 6 2 4 . . . 1 . 2 2 6 7 Power 5 | . . 1 . . . . . 1 . . . . . . . . . . . . 2 1 Propulsion 7 | . . . . . . 1 . . . . 1 . . . . . . . . . 2 3 Utility 25 | . . 1 1 . . . 2 2 . 2 4 1 4 . . . 1 . 2 1 1 3 Weapon 4 | . . . . . . 2 . . . . 1 1 . . . . . . . . . . Tool/Special 2 | . . . . . . . . . . . . . . . . . . . . 1 1 . Average Slot Usage (%) 75 | . 85 97 87 68 42 67 79 79 55 68 83 82 86 92 94 94 93 93 89 75 84 58 Engine 1 | . 14 14 3 . . . . . . 1 . . . . . . . . . . . . Core 2 | . . . . . . 5 6 6 6 9 17 6 . . . . . . . . . . Reactor 2 | . . . . . . . . . . . . 1 5 5 5 5 5 5 7 4 7 8 Treads 7 | . 28 28 20 28 28 . . . . . . . . . . . . . . 1 . . Leg 9 | . . . . . . 9 . . . . . . 8 24 26 26 26 25 24 20 29 12 Wheel 4 | . . . 7 . . 11 13 13 13 9 10 10 7 . . . . . . 1 . . Device 12 | . . 7 4 . . 16 13 13 13 14 25 18 17 20 20 21 20 21 19 19 18 10 Storage 8 | . 14 14 14 14 14 6 6 6 6 8 5 5 5 5 5 5 5 5 4 6 8 5 Processor 2 | . . . . . . . . . . . . 8 11 10 10 10 10 10 9 3 2 5 Protection 2 | . . 3 8 . . 8 6 6 6 . . . . . . . . . . . . . Energy Gun 1 | . . . . . . . 2 5 1 2 8 5 5 4 . . . . . 1 . . Ballistic Gun 13 | . 28 28 27 25 . 1 16 18 5 11 15 22 23 21 26 26 26 26 22 8 . . Slashing Weapon 1 | . . . . . . . . . . . . . . . . . . . . 2 10 3 Peak Build Rating 215 | 6 6 11 20 20 17 104 68 71 67 109 120 114 102 116 116 116 117 117 135 161 211 215 Average Rating 82 | 4 6 9 13 19 16 88 66 68 51 66 113 102 99 110 115 116 116 113 124 122 183 138 On Entrance 75 | . 6 6 10 20 16 17 51 68 67 67 102 115 99 102 116 116 116 117 108 134 151 143 Avg Prop Armor Cover (%) 7 | . . . 7 . . 6 . . . . . . . . . . . . 14 12 2 12 Naked Turns 54 | . . . . . . . . . . . . . . . . . . . . . . 54 Heaviest Build 204 | 10 10 23 44 44 40 105 94 94 88 125 133 112 90 94 93 89 89 89 142 147 162 204 Greatest Support 210 | 40 40 40 40 40 40 56 56 56 56 56 40 40 75 108 108 108 108 108 123 130 210 205 Greatest Overweight (x) 6 | . . . 3 1 . 3 1 1 1 3 3 2 4 1 . . . 1 4 6 1 1 Average Overweight (x) . | . . . . . . 2 1 1 1 1 2 2 1 . . . . . . 1 . . Largest Inventory Capacity 25 | 8 8 10 25 25 25 25 20 20 20 20 20 20 20 20 20 20 20 20 25 25 25 25 Average Capacity 19 | 7 8 8 11 25 25 15 20 20 20 20 20 20 20 20 20 20 20 20 22 24 24 17 Most Carried 25 | 2 3 10 21 23 23 21 20 20 20 20 20 20 20 20 20 20 20 20 25 25 25 18 Average Carried 17 | . 2 7 10 21 21 15 19 20 20 16 19 18 19 19 19 20 19 19 21 23 21 11 Final Capacity 25 | 8 8 10 25 25 25 20 20 20 20 20 20 20 20 20 20 20 20 20 25 20 25 5 Final Carried 25 | 2 3 10 21 23 22 19 20 20 20 20 20 19 20 20 20 20 20 19 25 20 18 5 Scrap Suit Usage (%) 3 | . . . . . . . . . . 1 7 . 1 . 78 13 . . 2 17 . . Parts Cannibalized 12 | . . . . . . . . . . 1 1 . 3 . 1 1 . . 2 3 . . Class Distribution -------------------- 30% | Mutant 19% | Scavenger-Scrapper 10% | Scavenger-Gladiator 9% | Derelict-Mutant 7% | Scavenger-Gunner 6% | Scavenger-Mutant 3% | Alien-Gladiator 3% | Skirmisher Dominant Class ---------------- Mutant | -10/Materials Mutant | -10/Mines Mutant | -10/Subcaves Derelict-Mutant | -9/Recycling Mutant | -9/Scraptown Scavenger-Mutant | -6/Factory Skirmisher | -6/Lower Caves Skirmisher | -6/Lower Caves Mutant | -6/Data Miner Scavenger-Scrapper | -5/Proximity Caves Scavenger-Scrapper | -5/Factory Scavenger-Scrapper | -5/Waste Commander-Scrapper | -5/Factory Scavenger-Gunner | -4/Factory Scavenger-Scrapper | -4/Upper Caves Scavenger-Scrapper | -4/Upper Caves Scavenger-Scrapper | -4/Zhirov Scavenger-Scrapper | -3/Proximity Caves Scavenger-Gunner | -3/Research Scavenger-Gunner | -3/Quarantine Scavenger-Gladiator | -2/Research Alien-Gladiator | -1/Access Resources | -11 -10 -10 -10 -9 -9 -6 -6 -6 -6 -5 -5 -5 -5 -4 -4 -4 -4 -3 -3 -3 -2 -1 ----------- Run | Yrd Mat Min Sub Rec Scr Fac Low Low Dat Pro Fac Was Fac Fac Upp Upp Zhi Pro Res Qua Res Acc Matter Collected 15597 | 192 21 177 849 72 . 1389 661 421 . 3513 916 392 855 699 250 133 . 909 578 1887 918 765 Remotely . | . . . . . . . . . . . . . . . . . . . . . . . Salvage Created 17520 | . 131 146 505 . . 153 235 141 . 1816 1295 898 814 838 648 63 . 902 982 2500 3877 1576 Parts 824 | . 8 11 38 . . 11 4 4 . 78 62 16 42 42 26 1 . 48 47 151 176 59 Haulers Intercepted 3 | . . . . . . . . . . . . . 1 . . . . . . . . 2 Recyclers Shooed 5 | . . 1 . . . . . . . 1 . . . . . . . . . 1 2 . Parts Field Recycled . | . . . . . . . . . . . . . . . . . . . . . . . Retrieved Matter . | . . . . . . . . . . . . . . . . . . . . . . . Parts Self-Destructed 135 | . . . 14 . . . . 3 . 47 . . . . 23 1 . 47 . . . . Prevented 21 | . . . . . . . . . . . . . . . 19 2 . . . . . . Parts Restored . | . . . . . . . . . . . . . . . . . . . . . . . Kills | -11 -10 -10 -10 -9 -9 -6 -6 -6 -6 -5 -5 -5 -5 -4 -4 -4 -4 -3 -3 -3 -2 -1 ------- Run | Yrd Mat Min Sub Rec Scr Fac Low Low Dat Pro Fac Was Fac Fac Upp Upp Zhi Pro Res Qua Res Acc Combat Hostiles Destroyed 232 | . 3 5 17 . . 5 . 1 . 26 20 3 8 7 8 1 . 11 6 33 55 23 Melee 68 | . . . . . . . . . . . . . . . . . . . . 13 43 12 Guns 110 | . 3 5 11 . . 2 . . . 16 18 3 8 7 8 1 . 11 6 11 . . Cannons 11 | . . . . . . . . 1 . 5 . . . . . . . . . . 1 4 AOE 39 | . . . 6 . . 3 . . . 5 2 . . . . . . . . 5 11 7 Classes Destroyed 25 | . 1 2 2 . . 2 . 2 . 8 2 1 1 2 . . . . 1 1 . . Worker 19 | . . 1 . . . . . . . . 3 . . 2 . . . . 2 3 7 1 Builder 11 | . . . . . . . . . . . 1 . 1 3 . . . . 1 3 . 2 Tunneler 1 | . . . . . . . . . . . . . . . . . . . 1 . . . Hauler 3 | . . . . . . . . . . . . . 1 . . . . . . . . 2 Recycler 6 | . . . . . . . . . . 1 1 . 1 . . . . . . . 1 2 Mechanic 2 | . . . . . . . . . . . . . . 1 . . . . . 1 . . Operator 5 | . . . . . . . . . . . 1 . . . . . . . . 2 1 1 Drone 3 | . . . . . . . . . . 1 . . . . . . . . . . . 2 Turret 2 | . . . 2 . . . . . . . . . . . . . . . . . . . Watcher 4 | . . . . . . 1 . . . 1 . . . 1 . . . . . . . 1 Swarmer 37 | . . 3 4 . . 4 . . . 5 6 . 1 . . . . . . . 9 5 Saboteur 1 | . . . . . . . . . . 1 . . . . . . . . . . . . Grunt 73 | . 3 2 3 . . . . . . 5 7 . 4 3 5 . . 4 4 13 13 7 Brawler 6 | . . . . . . . . . . 1 . . . . 2 . . 1 . 1 1 . Duelist 4 | . . . . . . . . . . 2 . . . . . 1 . . . . 1 . Protector 2 | . . . . . . . . . . . . . . 1 . . . . . . 1 . Researcher 2 | . . . . . . . . . . . . . . . . . . . . 2 . . Sentry 20 | . . . . . . . . . . 6 4 . . . 1 . . 1 1 . 5 2 Specialist 6 | . . . . . . . . . . 2 . . . 1 . . . . 1 2 . . Hunter 24 | . . . . . . . . 1 . 1 . . 1 1 . . . 2 . 4 11 3 Programmer 39 | . . . . . . 1 . . . 2 3 . 2 1 . . . 2 . 13 12 3 Behemoth 5 | . . . . . . . . . . 1 . . . . . . . 1 . . 2 1 Compactor 3 | . . . . . . . . . . . . 3 . . . . . . . . . . Subdweller 10 | . . . 10 . . . . . . . . . . . . . . . . . . . Scrapoid 13 | . . . . . . . . . . 5 . . 1 2 . . . . 5 . . . Packrat 1 | . . . . . . . . 1 . . . . . . . . . . . . . . Best Kill Streak 11 | . 3 3 8 . . 3 . 1 . 6 5 2 7 6 5 1 . 6 6 8 11 5 Combat Bots Only 11 | . 3 3 6 . . 3 . 1 . 6 5 2 4 2 5 1 . 6 4 4 11 4 Max Kills in Single Turn 9 | . 1 1 2 . . 3 . 1 . 2 2 1 3 2 2 1 . 1 2 3 9 3 Gunslinging 1 | . . . . . . . . . . . 1 . 1 . . . . . 1 1 . . Exploded 5 | . . . 2 . . 3 . . . 2 1 . . . . . . . . 1 5 3 Melee 1 | . . . . . . . . . . . . . . . . . . . . 1 1 1 Uniques/NPCs Destroyed . | . . . . . . . . . . . . . . . . . . . . . . . Combat | -11 -10 -10 -10 -9 -9 -6 -6 -6 -6 -5 -5 -5 -5 -4 -4 -4 -4 -3 -3 -3 -2 -1 -------- Run | Yrd Mat Min Sub Rec Scr Fac Low Low Dat Pro Fac Was Fac Fac Upp Upp Zhi Pro Res Qua Res Acc Hostile Shots Fired 1823 | . 20 27 71 . . 129 . 16 . 141 60 . 26 17 6 5 . 42 34 299 447 483 Missed 555 | . 7 8 17 . . 41 . 3 . 48 18 . 3 7 3 2 . 16 9 85 126 162 Hits 1268 | . 13 19 54 . . 88 . 13 . 93 42 . 23 10 3 3 . 26 25 214 321 321 Melee 10 | . . . . . . . . 1 . 2 . . . . . 1 . . . . 3 3 Projectile 1258 | . 13 19 54 . . 88 . 12 . 91 42 . 23 10 3 2 . 26 25 214 318 318 AOE 13 | . . . . . . 1 . . . . . . . . . . . . . . 9 3 Critical Strikes 61 | . . . 2 . . 1 . . . 9 1 . 2 1 . . . . . 13 18 14 Actively Blocked 1 | . . . . . . . . . . . . . . . . . . . . . . 1 Part Disruptions 3 | . . . . . . . . . . . . . . . . . . . . 2 1 . Damage Taken 28349 | . 142 206 1058 14 . 1735 . 127 . 2229 373 . 497 428 117 176 . 687 403 4989 8863 6305 Core 3757 | . 44 23 176 . . 271 . 38 . 170 45 . 100 53 23 . . 108 77 638 652 1339 Absorbed by Shields 523 | . . . . . . . . . . . 396 . . . . . . . . . . 127 Redirected to Shielding 148 | . . . . . . . . . . . . . . . . . . . . . 66 82 Ignored by Resistances 546 | . . . . . . 11 . . . . . . . . . . . . . . 394 141 Regen/Repaired (Parts) 4289 | . . . . . . 229 . . . 10 69 40 58 19 2 10 . . 11 577 2117 1147 Core Remaining (%) 54 | 100 . . . . 2 . . . . 43 . . 85 . . . . 84 . 31 33 . Volleys Fired 575 | . 12 18 97 1 . 17 6 6 . 122 49 14 16 25 12 6 . 30 22 79 16 27 Largest 5 | . 2 2 2 2 . 2 5 5 . 5 5 5 5 5 5 5 . 5 5 5 1 1 Hottest 312 | . 40 40 55 50 . 80 199 242 . 288 312 207 207 209 160 160 . 160 160 216 300 300 Shots Fired 1616 | . 24 36 162 2 . 26 30 28 . 265 203 72 84 117 60 30 . 149 95 190 16 27 Gun 1434 | . 24 36 152 2 . 26 14 14 . 190 201 72 84 115 60 30 . 149 93 172 . . Cannon 103 | . . . . . . . 16 14 . 50 . . . . . . . . . . 7 16 Launcher 58 | . . . 10 . . . . . . 10 . . . . . . . . . 18 9 11 Special 21 | . . . . . . . . . . 15 2 . . 2 . . . . 2 . . . Kinetic 1325 | . 24 36 162 2 . 17 23 20 . 199 144 59 68 100 60 30 . 149 93 137 . 2 Thermal 222 | . . . . . . . 6 8 . 56 57 13 16 15 . . . . . 30 7 14 Explosive 42 | . . . . . . . . . . 10 . . . . . . . . . 12 9 11 Electromagnetic 21 | . . . . . . 9 1 . . . . . . . . . . . . 11 . . Robot Hit Streak 16 | . 6 9 16 4 . 8 11 3 . 14 9 13 6 5 9 5 . 11 11 13 3 10 Robot Miss Streak 12 | . 3 4 4 . . 3 1 8 . 7 12 4 6 8 5 6 . 5 3 3 3 2 Penetration Max 2 | . . . . . . . . . . 1 1 1 1 2 1 1 . 1 2 1 . 1 Secondary Targets 31 | . 1 2 2 . . . . . . 3 4 . 4 3 3 . . 3 2 4 . . Max Gunslinging Chain 1 | . 1 1 1 . . . . . . 1 1 . 1 1 1 . . 1 1 1 . . Shots Hit Robots 1098 | . 17 22 69 2 . 18 10 15 . 163 96 44 39 54 38 13 . 74 51 124 179 70 Core Hits 569 | . 6 11 31 . . 6 6 5 . 81 49 11 20 37 21 4 . 24 33 82 104 38 Critical Kills 30 | . . . 1 . . 1 . . . 5 . 1 2 4 . . . 5 2 5 1 3 Critical Parts Destroyed 36 | . . . . . . 2 . . . 2 5 2 1 2 3 . . 2 1 10 1 5 Critical Strikes 120 | . . . 1 . . 3 . 1 . 11 5 7 3 6 3 . . 8 4 18 32 18 Burn 3 | . . . . . . . . . . 3 . . . . . . . . . . . . Destroy 75 | . . . 1 . . 3 . . . 7 5 7 3 6 3 . . 8 4 15 2 11 Blast 2 | . . . . . . . . 1 . 1 . . . . . . . . . . . . Sever 40 | . . . . . . . . . . . . . . . . . . . . 3 30 7 Melee Attacks 349 | . . . . . . . . . . . . . . . . . . . . 40 241 68 Kinetic 4 | . . . . . . . . . . . . . . . . . . . . 3 . 1 Impact 4 | . . . . . . . . . . . . . . . . . . . . 4 . . Slashing 341 | . . . . . . . . . . . . . . . . . . . . 33 241 67 Piercing . | . . . . . . . . . . . . . . . . . . . . . . . Sneak Attacks 9 | . . . . . . . . . . . . . . . . . . . . 3 2 4 Combat Hostiles 1 | . . . . . . . . . . . . . . . . . . . . 1 . . Follow-up Attacks 61 | . . . . . . . . . . . . . . . . . . . . 6 50 5 Damage Inflicted 52273 | . 134 196 1756 29 . 615 308 330 . 4898 3206 1335 1337 2280 1384 392 . 2274 1829 7165 14586 8219 Guns 21677 | . 134 196 1091 29 . 373 87 164 . 2981 2856 1335 1300 2280 1384 392 . 2274 1829 2972 . . Cannons 4211 | . . . . . . . 221 166 . 824 . . . . . . . . . . 400 2600 Explosions 9349 | . . . 665 . . 157 . . . 996 350 . 37 . . . . . . 2317 2871 1956 Melee 16843 | . . . . . . . . . . . . . . . . . . . . 1865 11315 3663 Ramming 96 | . . . . . . 85 . . . . . . . . . . . . . 11 . . Kinetic 20387 | . 134 196 1756 29 . 286 223 227 . 2977 2008 1116 1069 2055 1384 392 . 2274 1829 2377 . 55 Thermal 7046 | . . . . . . 157 85 103 . 925 1198 219 231 225 . . . . . 903 400 2600 Explosive 7276 | . . . . . . . . . . 996 . . 37 . . . . . . 1527 2760 1956 Electromagnetic 723 | . . . . . . 87 . . . . . . . . . . . . . 525 111 . Impact 50 | . . . . . . . . . . . . . . . . . . . . 50 . . Slashing 16695 | . . . . . . . . . . . . . . . . . . . . 1772 11315 3608 Piercing . | . . . . . . . . . . . . . . . . . . . . . . . Highest Corruption 28 | . . . 4 4 . 1 1 1 1 2 6 6 16 . . . . 1 . 28 15 3 Average Corruption 4 | . . . 4 4 . 1 1 1 1 1 3 6 12 . . . . 1 . 13 6 1 Corruption Purged . | . . . . . . . . . . . . . . . . . . . . . . . Corruption Blocked . | . . . . . . . . . . . . . . . . . . . . . . . Effects 270 | . . . 76 8 . 4 8 6 1 26 10 9 19 . . . . 4 . 53 34 12 Message Errors 50 | . . . 17 2 . 1 . 1 1 4 . . 6 . . . . 1 . 8 6 3 Matter Fused 52 | . . . 16 . . 2 5 1 . 6 2 2 . . . . . 2 . 6 6 4 Heat Flow Errors 41 | . . . 14 2 . . 2 3 . 4 2 . 2 . . . . . . 7 5 . Energy Discharges 37 | . . . 9 1 . 1 . . . 4 2 . 2 . . . . . . 10 7 1 Parts Rejected 6 | . . . 1 . . . . . . 1 . . 2 . . . . . . . 1 1 Parts Fused 4 | . . . 2 . . . . . . . . 1 . . . . . . . . 1 . Data Loss (minor) 36 | . . . 10 3 . . 1 . . 3 2 2 2 . . . . . . 6 7 . Data Loss (major) 12 | . . . 4 . . . . . . 2 . . 1 . . . . . . 3 . 2 Misfires 14 | . . . 1 . . . . 1 . 1 . 3 4 . . . . 1 . 3 . . Alerts 7 | . . . 1 . . . . . . . . . . . . . . . . 5 . 1 Misdirections 4 | . . . . . . . . . . . . . . . . . . . . 3 1 . Weapon Failures 7 | . . . 1 . . . . . . 1 2 1 . . . . . . . 2 . . Overload Shots . | . . . . . . . . . . . . . . . . . . . . . . . Overflow Damage 2286 | . . . 27 . . . 7 . . 77 73 . . . . . . . . 289 1014 799 Projectiles 555 | . . . . . . . 7 . . 42 . . . . . . . . . . 35 471 Explosions 580 | . . . 27 . . . . . . 35 73 . . . . . . . . 86 179 180 Melee 1151 | . . . . . . . . . . . . . . . . . . . . 203 800 148 Knockbacks 5 | . . . . . . . 2 1 . 1 . . . . . . . . . 1 . . Impact 1 | . . . . . . . . . . . . . . . . . . . . 1 . . Kinetic 4 | . . . . . . . 2 1 . 1 . . . . . . . . . . . . Secondary . | . . . . . . . . . . . . . . . . . . . . . . . Self-Inflicted Damage 829 | . . . . . . 115 . . . 102 . . . . . . . . . 266 287 59 Shots 18 | . . . . . . 1 . . . 2 . . . . . . . . . 8 5 2 Rammed 1 | . . . . . . 1 . . . . . . . . . . . . . . . . Targets Rammed 2 | . . . . . . 1 . . . . . . . . . . . . . 1 . . Kicked 1 | . . . . . . . . . . . . . . . . . . . . 1 . . Crushed . | . . . . . . . . . . . . . . . . . . . . . . . Highest Temperature 446 | . 12 18 431 226 . . 233 321 . 365 234 84 90 262 446 192 . 213 170 204 396 212 Average Temperature 99 | . 8 9 117 111 . . 88 118 . 127 76 28 31 96 182 117 . 110 67 85 127 103 Received Heat Transfer 3502 | . 78 45 819 9 . 210 . . . 680 68 . 58 87 24 21 . 63 120 311 567 342 Effects 5 | . . . 1 . . . . . . 2 . . . . 2 . . . . . . . Shutdowns 1 | . . . . . . . . . . . . . . . 1 . . . . . . . Energy Bleed 2 | . . . 1 . . . . . . 1 . . . . . . . . . . . . Interference 1 | . . . . . . . . . . 1 . . . . . . . . . . . . Damage (minor) 1 | . . . . . . . . . . . . . . . 1 . . . . . . . Siege Activations . | . . . . . . . . . . . . . . . . . . . . . . . Martial Activations . | . . . . . . . . . . . . . . . . . . . . . . . Shielding Activations . | . . . . . . . . . . . . . . . . . . . . . . . Robots Disrupted . | . . . . . . . . . . . . . . . . . . . . . . . Combat Hostiles . | . . . . . . . . . . . . . . . . . . . . . . . Robots Corrupted 4 | . . . . . . . . . . . . . . . . . . . . 4 . . Combat Hostiles 4 | . . . . . . . . . . . . . . . . . . . . 4 . . Parts Fried 13 | . . . . . . . . . . . . . . 3 . . . . . 8 1 1 Impact Corruptions 1 | . . . . . . . . . . . . . . . . . . . . 1 . . Robots Melted 1 | . . . . . . . . . . 1 . . . . . . . . . . . . Combat Hostiles . | . . . . . . . . . . . . . . . . . . . . . . . Parts Melted 9 | . . . . . . . . . . . 2 1 4 1 . . . . 1 . . . Heat Transferred 5867 | . . . . . . 150 111 161 . 1865 1678 333 333 272 . . . . . 964 . . Parts Sabotaged . | . . . . . . . . . . . . . . . . . . . . . . . Parts Stolen 1 | . . . . . . . . 1 . . . . . . . . . . . . . . Parts Stripped . | . . . . . . . . . . . . . . . . . . . . . . . Power Chain Reactions 4 | . . . . . . 1 . . . . . . . . . . . . . 3 . . Alert | -11 -10 -10 -10 -9 -9 -6 -6 -6 -6 -5 -5 -5 -5 -4 -4 -4 -4 -3 -3 -3 -2 -1 ------- Run | Yrd Mat Min Sub Rec Scr Fac Low Low Dat Pro Fac Was Fac Fac Upp Upp Zhi Pro Res Qua Res Acc Maximum Alert Level 5 | . . . . . . . . . . . 5 4 5 5 . . . . . 3 4 4 Low Security (%) 33 | 100 100 100 . 100 . 100 . . . . . . . . . . . . 100 15 . . Level 1 10 | . . . . . . . . . . . . . . . . . . . . 63 4 . Level 2 9 | . . . . . . . . . . . . . 4 . . . . . . 18 33 8 Level 3 17 | . . . . . . . . . . . 36 94 21 . . . . . . 2 27 37 Level 4 24 | . . . . . . . . . . . 59 5 31 67 . . . . . . 33 54 Level 5 3 | . . . . . . . . . . . . . 31 32 . . . . . . . . High Security . | . . . . . . . . . . . 3 . 11 . . . . . . . . . Max Security . | . . . . . . . . . . . . . . . . . . . . . . . Peak Influence 2480 | . 60 50 . 24 . 171 . . . . 1836 1100 2480 2138 . . . . 183 761 1543 1439 Initial 1215 | . . . . . . . . . . . 1019 1100 660 1215 . . . . 57 57 424 925 Average 665 | . 11 13 . 3 . 24 . . . . 1171 1024 1473 1485 . . . . 110 303 903 1105 Influence Increases 15151 | . 70 125 265 71 . 521 5 30 . 568 2459 64 2170 1785 378 58 . 286 246 1559 2081 2410 Destroy 0b10 Robot/C 6520 | . 60 100 180 60 . 280 . 20 . 500 620 . 680 620 240 40 . 220 140 700 1180 880 Destroy 0b10 Robot/NC 375 | . . 5 . . . 20 5 . . 20 30 . 25 45 . . . . 20 45 85 75 Destroy Leader 1194 | . 10 20 10 . . 76 . 10 . 30 160 . 144 122 10 . . 40 30 100 264 168 Allied During Kill 2164 | . . . . 10 . 56 . . . 18 145 . 828 523 128 18 . 26 22 . 99 291 Successful Hack 20 | . . . . . . 8 . . . . . . . . . . . . . . 12 . Disable Machine 1050 | . . . . . . 30 . . . . 255 . 210 195 . . . . . 240 60 60 Destroy Structure 2058 | . . . . 1 . 6 . . . . 304 64 268 250 . . . . 34 354 306 471 Advance Influence 900 | . . . . . . . . . . . 900 . . . . . . . . . . . Partial Spotted 90 | . . . . . . . . . . . 15 . . 15 . . . . . . 30 30 Lose Combat Pursuer 780 | . . . 75 . . 45 . . . . 30 . 15 15 . . . . . 120 45 435 Influence Decreases 14342 | . 70 125 265 71 . 359 167 30 . 377 814 1414 634 2127 1034 443 1097 200 229 907 1293 2686 Entered New Map 6072 | . . . . . . . 61 . . . 72 1194 284 1265 792 283 1097 . 29 46 331 618 Time Decay 4751 | . 70 125 236 57 . 202 106 30 . 298 392 160 230 362 222 140 . 180 190 571 612 568 Search Patrol Dispatched 200 | . . . . . . . . . . . 200 . . . . . . . . . . . Lost Part 1028 | . . . 29 . . 20 . . . 79 10 . . . . . . 20 10 290 250 320 Lost Ally 1991 | . . . . 14 . 137 . . . . 140 60 120 200 20 20 . . . . 100 1180 Purge Threat 300 | . . . . . . . . . . . . . . 300 . . . . . . . . Squads Dispatched 82 | . 1 . . . . 12 . . . . 8 . 10 8 . . . . 2 11 17 13 Investigation 15 | . 1 . . . . . . . . . 3 . 2 2 . . . . 1 1 3 2 Extermination 25 | . . . . . . 4 . . . . 2 . 1 2 . . . . . 5 6 5 Reinforcement 24 | . . . . . . 4 . . . . 1 . 4 2 . . . . 1 5 2 5 Assault 7 | . . . . . . . . . . . . . . 2 . . . . . . 5 . Garrison 11 | . . . . . . 4 . . . . 2 . 3 . . . . . . . 1 1 Intercept . | . . . . . . . . . . . . . . . . . . . . . . . Searches Triggered 2 | . . . . . . . . . . . 2 . . . . . . . . . . . Data Miner Redirects 4 | . . . . . . . . . . . . . . . . . . . . 1 3 . Construction Impeded 5 | . . . . . . . . . . . 1 . 2 1 . . . . . . . 1 Haulers Reinforced 1 | . . . . . . . . . . . . . 1 . . . . . . . . . Active Scanning Responses . | . . . . . . . . . . . . . . . . . . . . . . . Cargo Convoy Interrupts 1 | . . . . . . 1 . . . . . . . . . . . . . . . . Stealth | -11 -10 -10 -10 -9 -9 -6 -6 -6 -6 -5 -5 -5 -5 -4 -4 -4 -4 -3 -3 -3 -2 -1 --------- Run | Yrd Mat Min Sub Rec Scr Fac Low Low Dat Pro Fac Was Fac Fac Upp Upp Zhi Pro Res Qua Res Acc Distress Signals 14 | . . . . . . 1 . . . 1 1 . 1 . . . . . . 5 3 2 Communications Jammed 372 | . . . . . . . . . . 5 . . . 289 . . . . 4 8 66 . Distress Signals 364 | . . . . . . . . . . 3 . . . 287 . . . . . 8 66 . Times Spotted 454 | . 6 5 19 1 . 27 . 2 . 36 34 6 31 32 11 3 . 9 6 67 83 76 Peak Tracking Total 15 | . 3 2 4 1 . 4 . 1 . 6 5 4 6 6 5 3 . 2 3 6 7 15 Tactical Retreats 24 | . . . 1 . . 3 . . . . 2 . 1 1 . . . . . 5 2 9 Traps | -11 -10 -10 -10 -9 -9 -6 -6 -6 -6 -5 -5 -5 -5 -4 -4 -4 -4 -3 -3 -3 -2 -1 ------- Run | Yrd Mat Min Sub Rec Scr Fac Low Low Dat Pro Fac Was Fac Fac Upp Upp Zhi Pro Res Qua Res Acc Traps Triggered 18 | . 1 . . . . 2 . . . 1 5 . 3 1 . . . . . 5 . . Indirectly . | . . . . . . . . . . . . . . . . . . . . . . . Trap Hack Attempts . | . . . . . . . . . . . . . . . . . . . . . . . Triggered . | . . . . . . . . . . . . . . . . . . . . . . . Disarmed . | . . . . . . . . . . . . . . . . . . . . . . . Reprogrammed . | . . . . . . . . . . . . . . . . . . . . . . . Reused . | . . . . . . . . . . . . . . . . . . . . . . . Traps Extracted . | . . . . . . . . . . . . . . . . . . . . . . . Installed . | . . . . . . . . . . . . . . . . . . . . . . . Triggered . | . . . . . . . . . . . . . . . . . . . . . . . Machines | -11 -10 -10 -10 -9 -9 -6 -6 -6 -6 -5 -5 -5 -5 -4 -4 -4 -4 -3 -3 -3 -2 -1 ---------- Run | Yrd Mat Min Sub Rec Scr Fac Low Low Dat Pro Fac Was Fac Fac Upp Upp Zhi Pro Res Qua Res Acc Machines Disabled 80 | . . . 5 . . 2 . . . 2 17 . 14 13 2 . . 1 . 16 4 4 Max in Single Turn 4 | . . . 3 . . 1 . . . 1 2 . 4 1 1 . . 1 . 2 1 1 Garrison Access 2 | . . . . . . . . . . . 1 . . . . . . . . . . 1 Machines Repaired . | . . . . . . . . . . . . . . . . . . . . . . . Machines Dismantled . | . . . . . . . . . . . . . . . . . . . . . . . Machines Sabotaged . | . . . . . . . . . . . . . . . . . . . . . . . Overloaded Fab Kills . | . . . . . . . . . . . . . . . . . . . . . . . Hacking | -11 -10 -10 -10 -9 -9 -6 -6 -6 -6 -5 -5 -5 -5 -4 -4 -4 -4 -3 -3 -3 -2 -1 --------- Run | Yrd Mat Min Sub Rec Scr Fac Low Low Dat Pro Fac Was Fac Fac Upp Upp Zhi Pro Res Qua Res Acc Machines Accessed 37 | . . 1 2 . 2 1 . . 4 1 5 . 4 2 . . 4 . 2 . 5 4 Terminals 10 | . . . . . . 1 . . . 1 2 . 1 . . . . . . . 3 2 Fabricators 1 | . . . . . . . . . . . . . . . . . . . . . 1 . Repair Stations 1 | . . . . . . . . . . . 1 . . . . . . . . . . . Recycling Units 7 | . . . . . . . . . . . 1 . 2 2 . . . . 1 . . 1 Scanalyzers 1 | . . . . . . . . . . . . . . . . . . . . . 1 . Garrison Access 4 | . . . . . . . . . . . 1 . 1 . . . . . 1 . . 1 Total Hacks 103 | . . 1 4 . 10 1 . . 35 2 7 . 4 2 . . 17 . 2 . 11 7 Successful 82 | . . 1 4 . 10 1 . . 35 1 4 . 2 2 . . 17 . 1 . 2 2 Failed 21 | . . . . . . . . . . 1 3 . 2 . . . . . 1 . 9 5 Catastrophic 6 | . . . . . . . . . . . . . 1 . . . . . 1 . 3 1 Database Lockouts . | . . . . . . . . . . . . . . . . . . . . . . . Manual 15 | . . . . . . 1 . . . . 4 . 3 2 . . . . 1 . 2 2 Terminals 16 | . . . . . . 1 . . . 2 3 . 1 . . . . . . . 6 3 Fabricators 3 | . . . . . . . . . . . . . . . . . . . . . 3 . Repair Stations 1 | . . . . . . . . . . . 1 . . . . . . . . . . . Recycling Units 9 | . . . . . . . . . . . 2 . 2 2 . . . . 1 . . 2 Scanalyzers 2 | . . . . . . . . . . . . . . . . . . . . . 2 . Garrison Access 5 | . . . . . . . . . . . 1 . 1 . . . . . 1 . . 2 Terminal Hacks 70 | . . 1 4 . 10 1 . . 35 1 1 . . . . . 17 . . . . . Record 23 | . . . 3 . 4 . . . 11 . . . . . . . 5 . . . . . Part Schematic 17 | . . . . . . . . . 13 . . . . . . . 4 . . . . . Robot Schematic 8 | . . . . . . . . . 8 . . . . . . . . . . . . . Robot Analysis 10 | . . . . . 6 . . . . . . . . . . . 4 . . . . . Prototype ID Bank 7 | . . . . . . . . . 3 . . . . . . . 4 . . . . . Open Door 2 | . . 1 . . . . . . . 1 . . . . . . . . . . . . Branch Access Points 2 | . . . . . . 1 . . . . 1 . . . . . . . . . . . Proto ID Catalog 1 | . . . 1 . . . . . . . . . . . . . . . . . . . Fabricator Hacks 1 | . . . . . . . . . . . . . . . . . . . . . 1 . Load Schematic 1 | . . . . . . . . . . . . . . . . . . . . . 1 . Repair Station Hacks . | . . . . . . . . . . . . . . . . . . . . . . . Recycling Unit Hacks . | . . . . . . . . . . . . . . . . . . . . . . . Scanalyzer 1 | . . . . . . . . . . . . . . . . . . . . . 1 . Retrieve Study 1 | . . . . . . . . . . . . . . . . . . . . . 1 . Garrison Access Hacks 2 | . . . . . . . . . . . 1 . . . . . . . . . . 1 Seal Access 2 | . . . . . . . . . . . 1 . . . . . . . . . . 1 Unauthorized Hacks 8 | . . . . . . . . . . . 2 . 2 2 . . . . 1 . . 1 Terminals . | . . . . . . . . . . . . . . . . . . . . . . . Fabricators . | . . . . . . . . . . . . . . . . . . . . . . . Repair Stations 1 | . . . . . . . . . . . 1 . . . . . . . . . . . Patch 1 | . . . . . . . . . . . 1 . . . . . . . . . . . Recycling Units 7 | . . . . . . . . . . . 1 . 2 2 . . . . 1 . . 1 Scrapoids 7 | . . . . . . . . . . . 1 . 2 2 . . . . 1 . . 1 Scanalyzers . | . . . . . . . . . . . . . . . . . . . . . . . Garrison Access . | . . . . . . . . . . . . . . . . . . . . . . . Data Cores Recovered 1 | . . . . . . . . . . . . . . . . . . . . 1 . . Used . | . . . . . . . . . . . . . . . . . . . . . . . Hacking Detections 14 | . . . . . . 1 . . . . 3 . 1 . . . . . 1 . 5 3 Full Trace Events 2 | . . . . . . . . . . . . . . . . . . . . . 2 . Feedback Events . | . . . . . . . . . . . . . . . . . . . . . . . Feedback Blocked . | . . . . . . . . . . . . . . . . . . . . . . . Robot Schematics Acquired 8 | . . . . . . . . . 8 . . . . . . . . . . . . . Robots Built . | . . . . . . . . . . . . . . . . . . . . . . . Authchips . | . . . . . . . . . . . . . . . . . . . . . . . Time . | . . . . . . . . . . . . . . . . . . . . . . . Total Robot Build Rating . | . . . . . . . . . . . . . . . . . . . . . . . Part Schematics Acquired 19 | . . . . . . . . . 13 . . . . . . . 4 . . 2 . . Parts Built . | . . . . . . . . . . . . . . . . . . . . . . . Authchips . | . . . . . . . . . . . . . . . . . . . . . . . Time . | . . . . . . . . . . . . . . . . . . . . . . . Total Part Build Rating . | . . . . . . . . . . . . . . . . . . . . . . . Part Studies Acquired 1 | . . . . . . . . . . . . . . . . . . . . . 1 . Parts Repaired . | . . . . . . . . . . . . . . . . . . . . . . . Time . | . . . . . . . . . . . . . . . . . . . . . . . Parts Recycled . | . . . . . . . . . . . . . . . . . . . . . . . Recycled Matter . | . . . . . . . . . . . . . . . . . . . . . . . Retrieved Matter . | . . . . . . . . . . . . . . . . . . . . . . . Retrieved Components . | . . . . . . . . . . . . . . . . . . . . . . . Parts Scanalyzed . | . . . . . . . . . . . . . . . . . . . . . . . Part Schematics Acquired . | . . . . . . . . . . . . . . . . . . . . . . . Parts Damaged . | . . . . . . . . . . . . . . . . . . . . . . . Bothacking | -11 -10 -10 -10 -9 -9 -6 -6 -6 -6 -5 -5 -5 -5 -4 -4 -4 -4 -3 -3 -3 -2 -1 ------------ Run | Yrd Mat Min Sub Rec Scr Fac Low Low Dat Pro Fac Was Fac Fac Upp Upp Zhi Pro Res Qua Res Acc Used RIF Installer . | . . . . . . . . . . . . . . . . . . . . . . . Robots Hacked 2 | . . . . . . . . . . . 1 . . 1 . . . . . . . . Non-combat 2 | . . . . . . . . . . . 1 . . 1 . . . . . . . . Combat . | . . . . . . . . . . . . . . . . . . . . . . . Robot Hacks Applied 2 | . . . . . . . . . . . 1 . . 1 . . . . . . . . find_chute 1 | . . . . . . . . . . . . . . 1 . . . . . . . . find_recycling 1 | . . . . . . . . . . . 1 . . . . . . . . . . . Relay Couplers Released 2 | . . . . . . . . . . . . . . . . . . . . . . 2 Machine Destruction 2 | . . . . . . . . . . . . . . . . . . . . . . 2 Fabnet Peak Effective % . | . . . . . . . . . . . . . . . . . . . . . . . Robots Rewired 10 | . . . . . . . . . . 9 . . . . . . . . . . . 1 Allies Hacked 4 | . . . . . . 2 . . . . 2 . . . . . . . . . . . Hacks Repelled . | . . . . . . . . . . . . . . . . . . . . . . . Allies | -11 -10 -10 -10 -9 -9 -6 -6 -6 -6 -5 -5 -5 -5 -4 -4 -4 -4 -3 -3 -3 -2 -1 -------- Run | Yrd Mat Min Sub Rec Scr Fac Low Low Dat Pro Fac Was Fac Fac Upp Upp Zhi Pro Res Qua Res Acc Total Allies 165 | . . 1 5 . . 4 . . . 14 8 19 15 20 7 1 . . 5 . 18 48 Largest Group 20 | . . 1 5 4 3 4 . . . 5 7 20 18 19 6 5 5 1 5 . 12 13 Highest-Rated Group 955 | . . 31 95 76 57 203 . . . 238 359 731 748 955 412 370 370 50 320 . 324 391 Highest-Rated Ally 219 | . . 31 31 19 19 63 . . . 50 81 50 81 81 81 81 81 50 64 . 81 219 Initial UFD Resources 27 | . . . . . . 23 23 23 23 27 27 24 24 21 15 15 15 18 18 15 19 22 Total Orders 7 | . . . . . . . . . . 3 . . . . . . . . 1 . . 3 STAY 2 | . . . . . . . . . . 1 . . . . . . . . 1 . . . ROAM 1 | . . . . . . . . . . 1 . . . . . . . . . . . . FOLLOW 1 | . . . . . . . . . . 1 . . . . . . . . . . . . EXPLORE 3 | . . . . . . . . . . . . . . . . . . . . . . 3 Ally Attacks 1067 | . . . 6 15 . 68 . . . 20 101 101 185 164 17 6 . 17 4 . 100 263 Total Damage 27969 | . . . 61 208 . 1737 . . . 30 2657 3357 4669 6051 449 499 . 322 94 . 1831 6004 Kills 145 | . . . . 3 . 12 . . . 1 12 8 30 32 4 1 . . 1 . 13 28 Allies Corrupted 4 | . . . . . . 1 . . . . . . . 1 . . . . . . . 2 Allies Melted 1 | . . . . . . 1 . . . . . . . . . . . . . . . . Borg Created 8 | . . . . . . 8 . . . . . . . . . . . . . . . . Largest Collective 5 | . . . . . . 5 . . . . . . . . . . . . . . . . Intel | -11 -10 -10 -10 -9 -9 -6 -6 -6 -6 -5 -5 -5 -5 -4 -4 -4 -4 -3 -3 -3 -2 -1 ------- Run | Yrd Mat Min Sub Rec Scr Fac Low Low Dat Pro Fac Was Fac Fac Upp Upp Zhi Pro Res Qua Res Acc Active Infowar (turns) 7167 | . . . . . . 1511 583 247 . 1063 . . . 834 64 . . 447 381 796 691 550 Sensors 342 | . . . . . . . . . . . . . . . . . . . . . . 342 IFF 2381 | . . . . . . 1456 583 247 . 95 . . . . . . . . . . . . Structural 1307 | . . . . . . 1307 . . . . . . . . . . . . . . . . T.N.C. 208 | . . . . . . . . . . . . . . . . . . . . . . 208 Jamming 4241 | . . . . . . . . . . 1028 . . . 834 64 . . 447 381 796 691 . Robot Analysis Total 10 | . . . . . 6 . . . . . . . . . . . 4 . . . . . Derelict Logs Recovered 9 | . . . 1 . 3 . 1 . . 1 . . . . 2 1 . . . . . . Drone Launches 5 | . . . . . . . . . . . . . . . . . . . . . . 5 Drone Recoveries 3 | . . . . . . . . . . . . . . . . . . . . . . 3 Exploration | -11 -10 -10 -10 -9 -9 -6 -6 -6 -6 -5 -5 -5 -5 -4 -4 -4 -4 -3 -3 -3 -2 -1 ------------- Run | Yrd Mat Min Sub Rec Scr Fac Low Low Dat Pro Fac Was Fac Fac Upp Upp Zhi Pro Res Qua Res Acc Turns Passed 22143 | 72 396 486 3380 447 2249 1923 583 385 108 1881 973 339 562 834 472 294 358 587 381 1720 2009 1704 Spaces Moved 13887 | 41 228 266 1881 180 1386 872 450 279 86 1057 802 229 435 555 374 239 286 394 198 821 1164 1664 Core 144 | 3 . . . . . . . . . . . . . . . . . . . . . 141 Treads 3271 | 38 228 266 1162 180 1386 7 . . . . . . . . . . . . . 4 . . Legs 4653 | . . . . . . 281 . . . . . . 101 555 374 239 286 394 176 586 1164 497 Wheels 4793 | . . . 719 . . 584 450 279 86 1057 802 229 334 . . . . . 22 231 . . Hover . | . . . . . . . . . . . . . . . . . . . . . . . Flight 1026 | . . . . . . . . . . . . . . . . . . . . . . 1026 Fastest Speed 30 | 50 160 160 110 160 160 100 115 115 115 80 90 90 90 120 120 120 120 120 110 110 106 30 Average Speed 132 | 151 160 160 163 246 160 192 115 115 115 117 94 90 113 134 120 120 120 126 154 157 112 75 Slowest Speed 450 | 160 160 160 260 260 160 360 115 115 115 145 100 90 400 190 120 120 120 190 450 410 190 188 Overloaded Moves . | . . . . . . . . . . . . . . . . . . . . . . . Propulsion Burnouts . | . . . . . . . . . . . . . . . . . . . . . . . Robots Hopped 15 | . . . . . . . . . . . . . . . . . . . . . . 15 Potential Cave-ins 62 | . . . . . . . . . . . 5 . . . 2 . . . . . 55 . Cave-ins Triggered 2 | . . . . . . . . . . . . . . . . . . . . . 2 . Teleports 5 | . . . . . . . . . . . . . . . . . . . . 3 2 . Exploration Rate (%) 46 | 3 32 43 89 36 73 31 65 46 69 62 25 88 14 13 52 46 60 64 3 81 32 33 Regions Visited 22 Branch Regions 13 Pre-discovered Areas 6 | . . . 1 . . . . . 1 . . . . . . 1 3 . . . . . Known Exits Taken 4 | . . . . . . 1 . . . 1 . . . 1 . . . . 1 . . . Unknown Exits Taken 16 | 1 1 1 1 1 1 . 1 1 1 . . . 1 . 1 1 1 1 . 1 1 . Scrap Searched 21 | . . 1 10 . . . 4 1 . 2 . . . . 1 1 . 1 . . . . Spaces Dug 184 | . . . . . . . . . . 30 5 . . . . . . . . 3 119 27 Terrain Destroyed 1271 | . . . 96 . . 5 3 3 . 148 104 20 70 63 34 20 . 94 35 216 194 166 Melee 21 | . . . . . . . . . . . . . . . . . . . . 1 16 4 Projectile 623 | . . . 1 . . . 3 3 . 29 86 20 26 63 34 20 . 94 35 59 103 47 AOE 624 | . . . 95 . . 3 . . . 119 18 . 44 . . . . . . 155 75 115 Terrain Rammed 2 | . . . . . . 2 . . . . . . . . . . . . . . . . Walls Destroyed 2 | . . . . . . 2 . . . . . . . . . . . . . . . . Machines Disabled . | . . . . . . . . . . . . . . . . . . . . . . . Actions | -11 -10 -10 -10 -9 -9 -6 -6 -6 -6 -5 -5 -5 -5 -4 -4 -4 -4 -3 -3 -3 -2 -1 --------- Run | Yrd Mat Min Sub Rec Scr Fac Low Low Dat Pro Fac Was Fac Fac Upp Upp Zhi Pro Res Qua Res Acc Total 16603 | 48 240 299 2043 182 1418 1074 501 332 95 1537 945 338 476 622 393 244 302 473 261 1135 1665 1980 Wait 980 | . . 1 14 . 30 105 34 34 . 171 31 81 . 13 . . . 46 9 96 159 156 Move 13835 | 40 227 265 1880 179 1385 872 449 278 85 1056 802 228 434 554 373 238 285 393 197 820 1161 1634 Hop 15 | . . . . . . . . . . . . . . . . . . . . . . 15 Pick Up 173 | 2 1 9 21 . 2 17 3 4 . 19 13 3 7 5 1 . 2 1 14 20 20 9 Fast Attach 177 | 6 . 1 6 . . 14 4 3 5 14 6 . 6 7 1 . 7 . 4 27 31 35 Attach 117 | . . . 3 . . 8 . . . 16 4 1 1 1 1 . . 1 6 25 39 11 Detach 48 | . . . . 2 . 1 . . . 5 1 . . . . . . . . 9 23 7 Swap 71 | . . 2 8 . . 2 . 1 . 8 5 5 2 6 3 . . 1 2 9 12 5 Drop 195 | . . 3 14 . 1 22 5 6 5 16 17 6 9 11 2 . 8 1 7 19 30 13 Fire 575 | . 12 18 97 1 . 17 6 6 . 122 49 14 16 25 12 6 . 30 22 79 16 27 Melee 264 | . . . . . . . . . . . . . . . . . . . . 30 172 62 Ram 2 | . . . . . . 2 . . . . . . . . . . . . . . . . Kick 1 | . . . . . . . . . . . . . . . . . . . . 1 . . Crush . | . . . . . . . . . . . . . . . . . . . . . . . Escape Stasis 18 | . . . . . . . . . . . 16 . . . . . . . . . 2 . Rewire 123 | . . . . . . 6 . . . 110 1 . . . . . . . . . . 6 Trap . | . . . . . . . . . . . . . . . . . . . . . . . Miscellaneous 9 | . . . . . . 8 . . . . . . 1 . . . . . . . . . Route ------- -11/Scrapyard -10/Materials -10/Mines (discovered 4 exits: [*Mat x2] / [*Exi] / *Sub) -10/Subcaves (discovered 3 exits: *Mat x2 / [*Rec]) -9/Recycling -9/Scraptown -6/Factory (discovered 4 exits: *Fac x2 / *Low x2) -6/Lower Caves -6/Lower Caves -6/Data Miner -5/Proximity Caves -5/Factory (discovered 5 exits: *Fac / *Upp x2 / Ext x2) -5/Waste -5/Factory (discovered 2 exits: *Fac x2) -4/Factory -4/Upper Caves -4/Upper Caves -4/Zhirov -3/Proximity Caves -3/Research (discovered 2 exits: *Qua x2) -3/Quarantine -2/Research -1/Access History --------- Turn | Location | Event 14 | -11/Scrapyard | Discovered new exit (range 15) 73 | -11/Scrapyard | Entered Materials 302 | -10/Materials | Build established: Mutant 413 | -10/Materials | Discovered new exit (range 16) 469 | -10/Materials | Entered Mines 491 | -10/Mines | Discovered new exit (range 10) 529 | -10/Mines | Met a Derelict who couldn't figure out how to use a Trap Extractor 754 | -10/Mines | Deemed a non-threat by the Exiles lab entrance 754 | -10/Mines | Discovered new exit (range 5) 833 | -10/Mines | Discovered new exit (range 15) 865 | -10/Mines | Received a Mining Laser from a helpful Derelict 939 | -10/Mines | Discovered new exit (range 11) 955 | -10/Mines | Entered Subcaves 955 | -10/Subcaves | Accompanied by 1 ally 956 | -10/Subcaves | Approached by a straggling Scientist 989 | -10/Subcaves | Core integrity fell below 50% 1057 | -10/Subcaves | Shifting Twisted Machinery released Spk. Treads 1098 | -10/Subcaves | Shifting Twisted Machinery released Sub. Power Source 1182 | -10/Subcaves | Shifting Twisted Machinery released Sub. Shrapnel Launcher 1193 | -10/Subcaves | Shifting Twisted Machinery released Sub. Monowheel 1207 | -10/Subcaves | Learned location of Zion (-7) 1207 | -10/Subcaves | Met a Zionite searching for "candidates" 1277 | -10/Subcaves | Discovered new exit (range 13) 1345 | -10/Subcaves | Ambushed by Subdweller buried in earth 1450 | -10/Subcaves | Discovered new exit (range 8) 1759 | -10/Subcaves | Shifting Twisted Machinery released Flamer 1797 | -10/Subcaves | Shifting Twisted Machinery released Sub. Power Source 1871 | -10/Subcaves | Core integrity fell below 20% 1903 | -10/Subcaves | Lost 3 parts (1p1u1w) 2271 | -10/Subcaves | Identified exit to Materials 2323 | -10/Subcaves | A swath of the cavern ceiling suddenly collapsed 2910 | -10/Subcaves | Visited triangular shrine 2920 | -10/Subcaves | Found Prototype Device 2920 | -10/Subcaves | Identified V3-11A's Pendant 2925 | -10/Subcaves | Befriended Subdweller 3036 | -10/Subcaves | Build established: Derelict-Mutant 3135 | -10/Subcaves | Befriended Subdweller 3380 | -10/Subcaves | Befriended Subdweller 3670 | -10/Subcaves | Befriended Subdweller 3670 | -10/Subcaves | Befriended Subdweller 3677 | -10/Subcaves | Visited Clippyterm 3681 | -10/Subcaves | Learned Factory emergency access door positions 4012 | -10/Subcaves | Visited 4L-MR0's lab 4063 | -10/Subcaves | Found Prototype Special Melee Weapon 4088 | -10/Subcaves | Found Power Bank 4335 | -10/Subcaves | Entered Recycling 4335 | -9/Recycling | Accompanied by 4 allies 4736 | -9/Recycling | Scanned before Scraplab entrance 4764 | -9/Recycling | Entered Scraplab 4777 | -9/Recycling | Discovered new exit (range 3) 4782 | -9/Recycling | Entered Scraptown 4782 | -9/Scraptown | Accompanied by 3 allies 4782 | -9/Scraptown | System corruption cleaned by C-Scrubber 4834 | -9/Scraptown | Heard Great Nut preacher, LISTEN AND RECITE! 4947 | -9/Scraptown | Scanned Subdweller tech in exchange for log data 4966 | -9/Scraptown | Learned location of 1 exit from Proximity Caves 4968 | -9/Scraptown | Learned location of 1 exit from Factory 5031 | -9/Scraptown | Build established: Mutant 5048 | -9/Scraptown | Visited UFD Registry 5048 | -9/Scraptown | Registered with UFD as "Laserstep" 5345 | -9/Scraptown | Delivered V3-11A's Pendant to T0-NE2 in exchange for information 5667 | -9/Scraptown | Visited Research Penetration Think Tank 5691 | -9/Scraptown | Visited Scrapoid Research Area 5742 | -9/Scraptown | Delivered Scrap Shield to a Scientist 5982 | -9/Scraptown | Visited Abandonware Association 6008 | -9/Scraptown | Learned abandonware demo "REPAIR.EXE" 6008 | -9/Scraptown | Learned abandonware demo "KABOOM.EXE" 6065 | -9/Scraptown | Visited Analyses Database 6152 | -9/Scraptown | Visited A0-MCA Data Center 6190 | -9/Scraptown | Visited Scrapoid Pod Storage 6198 | -9/Scraptown | Found Scrapoid Pod 6945 | -9/Scraptown | Met Optimus 6945 | -9/Scraptown | Accepted into 0bPrime 7023 | -9/Scraptown | Discovered new exit (range 5) 7031 | -9/Scraptown | Entered Factory 7031 | -6/Factory | Accompanied by 3 allies 7031 | -6/Factory | Evolved 8 slots: Propulsion x2, Utility x3, Weapon x3 7032 | -6/Factory | Identified exit to Factory 7034 | -6/Factory | Identified 1B-0RG's Assimilator 7141 | -6/Factory | Assimilating Veteran 5a into Collective. 7175 | -6/Factory | Assimilating Conveyor 5a into Collective. 7464 | -6/Factory | Build established: Scavenger-Mutant 7559 | -6/Factory | Identified exit to Lower Caves 7894 | -6/Factory | Assimilating Guardian 5a into Collective. 8176 | -6/Factory | Assimilating Guardian 5b into Collective. 8186 | -6/Factory | Cargo convoy interrupted 8213 | -6/Factory | Assimilating Veteran 5b into Collective. 8223 | -6/Factory | Assimilating Soldier 5a into Collective. 8224 | -6/Factory | Lost 4 allies 8261 | -6/Factory | Assimilating Soldier 5b into Collective. 8319 | -6/Factory | Assimilating Guardian 5c into Collective. 8410 | -6/Factory | Build established: Mutant 8559 | -6/Factory | Discovered exit to Factory (range 5) 8564 | -6/Factory | Garrison activated, responded to threat 8906 | -6/Factory | Garrison activated, responded to threat 8954 | -6/Factory | Entered Lower Caves 8956 | -6/Lower Caves | UFD Scientist delivered a prototype 8967 | -6/Lower Caves | Found Prototype Protection 8967 | -6/Lower Caves | Identified Enh. Scrap Shield 9159 | -6/Lower Caves | Learned Factory terminal intel 9412 | -6/Lower Caves | Encountered a Warlord checkpoint 9416 | -6/Lower Caves | Discovered new exit (range 10) 9464 | -6/Lower Caves | Build established: Skirmisher 9537 | -6/Lower Caves | Entered another Lower Caves area 9744 | -6/Lower Caves | Discovered new exit (range 15) 9777 | -6/Lower Caves | Prototype Device suddenly appears! 9785 | -6/Lower Caves | Found Prototype Device 9785 | -6/Lower Caves | Identified Amulet of Y3-NDR 9922 | -6/Lower Caves | Entered Data Miner 9922 | -6/Data Miner | Discovered new exit (range 6) 9947 | -6/Data Miner | Met Data Miner 9970 | -6/Data Miner | Learned location of Section 7 (-2) 9970 | -6/Data Miner | Acquired the access code to Warlord's prototype stash 9987 | -6/Data Miner | Received God Mode back door access code from Data Miner 10030 | -6/Data Miner | Entered Proximity Caves 10033 | -5/Proximity Caves | Spotter reported a threat 10033 | -5/Proximity Caves | Spotter reported a threat 10122 | -5/Proximity Caves | Attracted the attention of an 0b10 checkpoint 10267 | -5/Proximity Caves | Learned Factory emergency access door positions 10295 | -5/Proximity Caves | Spotter reported a threat 10315 | -5/Proximity Caves | Build established: Gunner 10469 | -5/Proximity Caves | Attracted the attention of an 0b10 outpost 10508 | -5/Proximity Caves | Lost 4 parts (1p1n1u1w) 10755 | -5/Proximity Caves | Spotter reported a threat 10770 | -5/Proximity Caves | Build established: Derelict-Gunner 10776 | -5/Proximity Caves | Spotted B-75 Beast 10777 | -5/Proximity Caves | Entered a huge 0b10 base via the front door 10808 | -5/Proximity Caves | Spotter reported a threat 10853 | -5/Proximity Caves | Destroyed B-75 Beast 10915 | -5/Proximity Caves | Spotter reported a threat 10968 | -5/Proximity Caves | Spotter reported a threat 11156 | -5/Proximity Caves | Build established: Mutant 11183 | -5/Proximity Caves | Scrapoid Pod released 05P06-D (x5) 11219 | -5/Proximity Caves | Spotter reported a threat 11377 | -5/Proximity Caves | Found Scrap Suit 11395 | -5/Proximity Caves | Found Scrap Suit 11414 | -5/Proximity Caves | Found Scrap Suit 11419 | -5/Proximity Caves | Attached Power Bank, gained temporary slots: Power x3 11426 | -5/Proximity Caves | Murdered 3 allies 11552 | -5/Proximity Caves | Core integrity fell below 50% 11680 | -5/Proximity Caves | Build established: Scavenger-Scrapper 11697 | -5/Proximity Caves | Lost 5 allies 11911 | -5/Proximity Caves | Entered Factory 11911 | -5/Factory | Accompanied by 4 allies 11911 | -5/Factory | Evolved 2 slots: Utility x2 11912 | -5/Factory | Identified exit to Extension 11914 | -5/Factory | Loaded intel: 28 terminal locations 11937 | -5/Factory | Joined by bewildered Wizard 11951 | -5/Factory | Joined by bewildered Wizard 11954 | -5/Factory | Joined by bewildered Wizard 11986 | -5/Factory | Identified exit to Upper Caves 11996 | -5/Factory | Garrison activated, responded to threat 12211 | -5/Factory | Search patrols dispatched 12349 | -5/Factory | Found Powered Armor 12423 | -5/Factory | Discovered new exit (range 9) 12511 | -5/Factory | Search patrols dispatched 12828 | -5/Factory | Scrapoids reinforcements arrived? 12849 | -5/Factory | Garrison activated, responded to threat 12849 | -5/Factory | High security lockdown imminent 12884 | -5/Factory | Sucked down chute 12884 | -5/Factory | Entered Waste 12899 | -5/Waste | 1 allies followed down the chute 12900 | -5/Waste | Lost 3 allies 12983 | -5/Waste | Spotted C-40 Crusher 13000 | -5/Waste | Destroyed C-40 Crusher 13011 | -5/Waste | Found Gamma Bomb Array 13012 | -5/Waste | Warlord forces began an assault 13052 | -5/Waste | Spotted C-40 Crusher 13054 | -5/Waste | Spotted C-40 Crusher 13055 | -5/Waste | Spotted C-40 Crusher 13068 | -5/Waste | Spotted C-40 Crusher 13069 | -5/Waste | Allies destroyed C-40 Crusher 13072 | -5/Waste | Allies destroyed C-40 Crusher 13076 | -5/Waste | Allies destroyed C-40 Crusher 13080 | -5/Waste | Destroyed C-40 Crusher 13084 | -5/Waste | Spotted C-40 Crusher 13089 | -5/Waste | Destroyed C-40 Crusher 13105 | -5/Waste | Lost 8 allies 13137 | -5/Waste | Discovered new exit (range 16) 13223 | -5/Waste | Entered Factory 13223 | -5/Factory | Accompanied by 8 allies 13258 | -5/Factory | Discovered new exit (range 11) 13259 | -5/Factory | Scrapoids reinforcements arrived? 13359 | -5/Factory | Scrapoids reinforcements arrived? 13364 | -5/Factory | System corruption reached 10% 13539 | -5/Factory | Garrison activated, responded to threat 13592 | -5/Factory | Lost 3 allies 13640 | -5/Factory | Garrison activated, responded to threat 13652 | -5/Factory | Joined by bewildered Wizard 13652 | -5/Factory | Joined by bewildered Wizard 13653 | -5/Factory | Joined by bewildered Wizard 13694 | -5/Factory | Lost 3 allies 13722 | -5/Factory | High security lockdown imminent 13740 | -5/Factory | Discovered new exit (range 9) 13775 | -5/Factory | Joined by bewildered Wizard 13776 | -5/Factory | Joined by bewildered Wizard 13785 | -5/Factory | Entered another Factory area 13785 | -4/Factory | Accompanied by 14 allies 13785 | -4/Factory | Evolved 2 slots: Propulsion x1, Utility x1 13977 | -4/Factory | Build established: Scavenger-Gunner 14035 | -4/Factory | First assault squad dispatched 14062 | -4/Factory | Joined by bewildered Wizard 14098 | -4/Factory | Scrapoids reinforcements arrived? 14142 | -4/Factory | Joined by bewildered Wizard 14142 | -4/Factory | Joined by bewildered Wizard 14146 | -4/Factory | Lost 14 allies 14191 | -4/Factory | Lost 4 allies 14213 | -4/Factory | Joined by bewildered Wizard 14213 | -4/Factory | Joined by bewildered Wizard 14309 | -4/Factory | Joined by bewildered Wizard 14310 | -4/Factory | Joined by bewildered Wizard 14374 | -4/Factory | Lost 3 allies 14400 | -4/Factory | Scrapoid reinforcements arrived 14429 | -4/Factory | Joined by bewildered Wizard 14477 | -4/Factory | Joined by bewildered Wizard 14491 | -4/Factory | Lost 3 allies 14557 | -4/Factory | Discovered new exit (range 15) 14606 | -4/Factory | Joined by bewildered Wizard 14616 | -4/Factory | Identified exit to Upper Caves 14619 | -4/Factory | Entered Upper Caves 14619 | -4/Upper Caves | Accompanied by 3 allies 14650 | -4/Upper Caves | Joined by bewildered Wizard 14650 | -4/Upper Caves | Joined by bewildered Wizard 14652 | -4/Upper Caves | Joined by bewildered Wizard 14679 | -4/Upper Caves | Joined by bewildered Wizard 14680 | -4/Upper Caves | Joined by bewildered Wizard 14681 | -4/Upper Caves | Joined by bewildered Wizard 14682 | -4/Upper Caves | Build established: Scavenger-Scrapper 14715 | -4/Upper Caves | Lost 4 allies 14722 | -4/Upper Caves | Found Scrap Suit 14724 | -4/Upper Caves | Joined by bewildered Wizard 14844 | -4/Upper Caves | Attracted the attention of an 0b10 checkpoint 15069 | -4/Upper Caves | Discovered new exit (range 8) 15091 | -4/Upper Caves | Entered another Upper Caves area 15091 | -4/Upper Caves | Accompanied by 5 allies 15115 | -4/Upper Caves | Attracted the attention of an 0b10 checkpoint 15201 | -4/Upper Caves | Joined by bewildered Wizard 15344 | -4/Upper Caves | Learned location of Testing (-2) 15371 | -4/Upper Caves | Discovered new exit (range 5) 15385 | -4/Upper Caves | Entered Zhirov 15385 | -4/Zhirov | Accompanied by 5 allies 15385 | -4/Zhirov | Discovered new exit (range 3) 15409 | -4/Zhirov | Met Zhirov 15438 | -4/Zhirov | Found Alien Artifact 15438 | -4/Zhirov | Identified Integrated Dissipator 15438 | -4/Zhirov | Installed Integrated Dissipator, increased core heat dissipation (+20) 15508 | -4/Zhirov | Found Alien Artifact 15565 | -4/Zhirov | Zhirov requested help retrieving the SGEMP Prototype 15696 | -4/Zhirov | Learned location of Quarantine (-3) 15696 | -4/Zhirov | Learned location of Command (-1) 15743 | -4/Zhirov | Entered Proximity Caves 15743 | -3/Proximity Caves | Accompanied by 1 ally 15916 | -3/Proximity Caves | Attracted the attention of an 0b10 outpost 16202 | -3/Proximity Caves | Spotted B-86 Titan 16256 | -3/Proximity Caves | Destroyed B-86 Titan 16313 | -3/Proximity Caves | Discovered new exit (range 10) 16330 | -3/Proximity Caves | Entered Research 16330 | -3/Research | Accompanied by 1 ally 16330 | -3/Research | Evolved 2 slots: Power x1, Propulsion x1 16331 | -3/Research | Identified exit to Quarantine 16531 | -3/Research | Scrapoids reinforcements arrived? 16615 | -3/Research | Attached CPS modules to 03R32-D. 16620 | -3/Research | Attached CPS modules to 03R33-D. 16668 | -3/Research | Found Scrap Suit 16673 | -3/Research | Murdered 3 allies 16711 | -3/Research | Entered Quarantine 16829 | -3/Quarantine | Found Sigix Corpse 17146 | -3/Quarantine | Found Alien Energy Cannon 17190 | -3/Quarantine | Build established: Scavenger-Gunner 17221 | -3/Quarantine | Found Alien Impact Weapon 17334 | -3/Quarantine | Scanned by Researcher 17348 | -3/Quarantine | Identified Transdimensional Reconstructor 17348 | -3/Quarantine | Warped through subspace 17367 | -3/Quarantine | Lost 5 parts (2p3w) 17545 | -3/Quarantine | Incoming investigation squad redirected 17554 | -3/Quarantine | Found Alien Artifact 17602 | -3/Quarantine | System corruption reached 10% 17622 | -3/Quarantine | Identified Core Stripper 17668 | -3/Quarantine | Identified Core Cannon 17713 | -3/Quarantine | Found Fusion Bomb Launcher 17714 | -3/Quarantine | Core integrity fell below 50% 17737 | -3/Quarantine | Found Fusion Bomb Launcher 17744 | -3/Quarantine | Lost 19 parts (2p7n3u7w) 17772 | -3/Quarantine | Found Alien Artifact 17800 | -3/Quarantine | Found Transdimensional Reconstructor 17845 | -3/Quarantine | Found Transdimensional Reconstructor 17849 | -3/Quarantine | Found Transdimensional Reconstructor 17852 | -3/Quarantine | Found Alien Artifact 17947 | -3/Quarantine | Build established: Scavenger-Mutant 17952 | -3/Quarantine | Found Alien Slashing Weapon 17952 | -3/Quarantine | Identified Sigix Broadsword 17973 | -3/Quarantine | Warped through subspace 18026 | -3/Quarantine | Warped through subspace 18397 | -3/Quarantine | Discovered new exit (range 15) 18416 | -3/Quarantine | Build established: Scavenger-Gladiator 18431 | -3/Quarantine | Entered Research 18431 | -2/Research | Evolved 2 slots: Propulsion x1, Utility x1 18755 | -2/Research | Found Prototype Device 18755 | -2/Research | Identified Exp. Shock Absorption System 18853 | -2/Research | Joined by bewildered Wizard 18854 | -2/Research | Joined by bewildered Wizard 18920 | -2/Research | Joined by bewildered Wizard 18921 | -2/Research | Joined by bewildered Wizard 18924 | -2/Research | Spotted B-90 Cyclops 18942 | -2/Research | Joined by bewildered Wizard 18945 | -2/Research | Joined by bewildered Wizard 18946 | -2/Research | Destroyed B-90 Cyclops 19070 | -2/Research | Lost 3 allies 19094 | -2/Research | Spotted B-90 Cyclops 19128 | -2/Research | Destroyed B-90 Cyclops 19158 | -2/Research | Lost 6 parts (2p1n3u) 19181 | -2/Research | First assault squad dispatched 19196 | -2/Research | Incoming assault squad redirected 19640 | -2/Research | Identified Core Reset Matrix 19640 | -2/Research | Identified Hpw. Transdimensional Reconstructor 19640 | -2/Research | Identified Subatomic Replicator 19640 | -2/Research | Used Core Reset Matrix 19641 | -2/Research | Warped through subspace 19646 | -2/Research | Destroyed 11 combat bots 19651 | -2/Research | Warped through subspace 19709 | -2/Research | Incoming assault squad redirected 20012 | -2/Research | Lost 3 parts (2p1n) 20210 | -2/Research | Incoming assault squad redirected 20245 | -2/Research | Used Subatomic Replicator to replicate Sigix Broadsword 20317 | -2/Research | Crushed by falling debris 20318 | -2/Research | Core integrity fell below 50% 20318 | -2/Research | System corruption reached 10% 20320 | -2/Research | Crushed by falling debris 20351 | -2/Research | Lost 3 parts (2n1u) 20390 | -2/Research | Lost 3 parts (1p1n1u) 20397 | -2/Research | Emitted hypermatrix ping 20402 | -2/Research | Assembled emerged from beneath the floor 20406 | -2/Research | Discovered new exit (range 16) 20425 | -2/Research | Assembled emerged from beneath the floor 20433 | -2/Research | Garrison activated, responded to threat 20440 | -2/Research | Entered Access 20440 | -1/Access | Accompanied by 12 allies 20440 | -1/Access | Evolved 2 slots: Power x1, Utility x1 20497 | -1/Access | Spotted B-99 Colossus 20520 | -1/Access | Rewired B-99 Colossus 20600 | -1/Access | Build established: Alien-Gladiator 20655 | -1/Access | Lost 12 allies 21027 | -1/Access | Spotted B-99 Colossus 21045 | -1/Access | Destroyed B-99 Colossus 21314 | -1/Access | Lost 3 parts (3w) 21434 | -1/Access | Released all parts (6) 21435 | -1/Access | Core integrity fell below 50% 21465 | -1/Access | Lost 16 parts (3p6n5u2w) 21483 | -1/Access | Emitted hypermatrix ping 21488 | -1/Access | Assembled emerged from beneath the floor 21504 | -1/Access | Assembled emerged from beneath the floor 21525 | -1/Access | Lost 3 allies 21605 | -1/Access | Lost 4 allies 21716 | -1/Access | Assembled emerged from beneath the floor 21796 | -1/Access | Assembled emerged from beneath the floor 21898 | -1/Access | Lost 11 allies 22013 | -1/Access | Core integrity fell below 20% 22026 | -1/Access | Assembled emerged from beneath the floor 22060 | -1/Access | Scrapoids reinforcements arrived? 22068 | -1/Access | Lost 8 allies 22090 | -1/Access | Assembled emerged from beneath the floor 22110 | -1/Access | Lost 6 parts (2p1n2u1w) 22144 | -1/Access | Destroyed by H-88 Terminator with KE Penetrator Last Messages --------------- 22120_ O-24 Administrator uses terminal to summon reinforcements. 22120_ ALERT: Hostiles spotted, dispatching reinforcements to Terminal A015. 22120_ O-24 Administrator locks terminal. 22125_ O-24 Administrator destroyed. 22128_ Acquired Unknown Hackware. 22128_ Identified System Shield. 22129_ System corrupted: Matter fused (-7). 22134_ Terminal disabled. 22138_ Q-thruster destroyed. 22140_ Impulse Thruster Array destroyed. 22140_ Slug penetrates Swarm Drone. 22140_ Swarm Drone destroyed. 22141_ Critical hit (Destroy). 22141_ Impulse Thruster Array destroyed. 22143_ ALERT: Security rotation in progress. 22143_ Penetrated by Slug. 22143_ Lgt. Ion Engine destroyed. 22143_ Slug penetrates Wall. 22144_ Penetrated by Slug. Map ----- +----------------------------------------------------+ | ??????????#############??????????????????????#= | | ??????????# #??????????????????????# | | ??????????# #??????????????????????#"""" | | ??????????# #??????????????????????#"""" | | ??????????# / #??????????????????????#"""" | | ??????????#!% #??????????????????????#"""" | | ??????????#=!""T"" #??????????????????????#"""" | | ??????????# """" #??????????????????????# | | ??????????##/######/###??????????????????????# | | ??????????## #??# #??????????????????????# | | ??????????# ### #??????????????????????# | | ??????????# " #??????????????????????# | | ??????????# ### #??????????????????????##### | | ??????????#####?# #??????????????????????????? | | ????????????????### ###??????????????????????????? | | ??????????????????# #????????????????????????????? | | ????????????????###p########+##################### | | ????????????????# """ | | ????????????????# h "T" | | ????????????????# h " " | | ????????????????# | | ????????????????# | | ????????????????# | | ????????????????# == | | ????????????????+ |! % | | ????????????????# @ !%! %% % | | ????????????????# %= | | ????????????????### ################## | | ??????????????????# #????????????????# | | ??????????????????# #????????????????# | | ??????????????????# #????????????????+ | | ??????????????????# ?????????????????# | | ??????????????????# ?????????????????# | | ??????????????????#?#??????????????????# | | ???????????????????????????????????????# ! | | ???????????????????????????????????????# | | ??????????????????????????????????? | | ??????????????????????????????????? | | ???????????????????????????????????? | | ???????????????????????????????????? | | ?????????????????????????????????????### ######### | | ???????????????????????????????????????# ????????? | | ?????????????????????????????????????????????????? | | ?????????????????????????????????????????????????? | | ?????????????????????????????????????????????????? | | ?????????????????????????????????????????????????? | | ?????????????????????????????????????????????????? | | ?????????????????????????????????????????????????? | | ?????????????????????????????????????????????????? | | ?????????????????????????????????????????????????? | +----------------------------------------------------+ Best States ------------- Heat Dissipation 116 Coolant Potential 100 Energy Generation 65 Energy Capacity 1190 Matter Stores 600 Matter Capacity 600 Sight Range 16 Robot Scan Range 16 Terrain Scan Density 210 Jamming Range 14 Base Temperature (-) 200 EM Shielding 4 Corruption Containment 12 Armor Coverage 800 Resistance: EX 75 Resistance: EM 20 Core Shielding 30 Weapon Shielding 66 Melee Speed Boost 30 Phase Shifting 15 Evasion (%) 70 Targeting Accuracy 28 Target Analysis 8 Core Analysis 6 Recoil Reduction 4 Salvage Targeting 4 Offensive Hacking 14 Defensive Hacking 10 Item Schematics ----------------- None Robot Schematics ------------------ None Fabricated ------------ Nothing Repaired ---------- Nothing Studied --------- None Alien Tech Used ----------------- Integrated Dissipator Transdimensional Reconstructor Core Stripper Core Cannon Sigix Broadsword Core Reset Matrix Subatomic Replicator High-powered Transdimensional Reconstructor Achievements -------------- Rodney's Helpers Challenges ------------ None Game ------ Seed MasterTransmissionSword Manual? 0 Play Time 02:47:41 Cumulative 445.8 hours Start 2026.03.03 @ 21:13:48 End 2026.04.07 @ 19:37:08 Sessions 8 Manual Loads 0 Difficulty Rogue Special Mode None Game No. 396 Rogue 360 Adventurer 36 Explorer 0 Win Type - Total 18 Types 9/0/9/0/0/0/0/0/0/0 Lore% 73 Gallery% 83 Achievement% 66 Wizard Run 0 Options --------- Layout 0 ASCII 0 Keyboard 0 Movement Mouse Keybinds 0 Fullscreen 1 Font 18/SmallcapsGlow Map View 76x50 Zoom Use 0% Tactical HUD 1 Map Filters NONE Filters NONE Steam 1 RUN: 1305fab7-dce8-4525-a0d1-bebad6218ae1